bitfinex-derivatives/quotes_BNBF0:USTF0_20250315
["timestamp","ask_amount","ask_price","bid_price","bid_amount"]
[1742036798254,0.28522643,597.98,596.78,7.55413187]
[1742036798448,0.28522643,597.97,596.78,7.55413187]
[1742036798753,0.33443697,598.02,596.78,7.55413187]
[1742036798953,0.28520451,598.01,596.78,7.55413187]
[1742036799547,0.28520451,598.01,596.79,0.30759006]
[1742036799752,2.55951673,598.64,596.81,0.33511502]
[1742036799753,0.28520451,598.63,596.81,0.33511502]
[1742036799952,0.28520451,598.0,596.81,0.33511502]
[1742036800151,0.28520451,597.99,596.81,0.33511502]
[1742036800353,0.28520451,598.61,596.81,0.33511502]
[1742036800552,0.33411851,598.59,596.81,0.33511502]
[1742036800854,0.28517571,598.58,596.81,0.33511502]
[1742036801052,0.33413525,598.56,596.81,0.33511502]
[1742036801251,0.28517571,598.55,596.81,0.33511502]
[1742036801453,0.61932213,598.54,596.81,0.33511502]
[1742036801753,0.61932771,598.53,596.81,0.33511502]
[1742036801954,0.61933329,598.52,596.81,0.33511502]
[1742036802253,0.28517571,598.51,596.82,0.30758138]
[1742036802452,0.28517571,598.5,596.84,0.33509818]
[1742036802647,0.28517571,598.49,596.84,0.33509818]
[1742036802850,0.61933738,598.48,596.84,0.33509818]
[1742036803050,0.61934296,598.47,596.85,1.325]
[1742036803347,0.61934855,598.46,596.87,0.33508134]
[1742036803549,0.61935413,598.45,596.87,0.33508134]
[1742036803753,0.61935971,598.44,596.87,0.33508134]
[1742036803955,0.6193653,598.43,596.87,0.33508134]
[1742036804152,0.29125482,598.48,596.87,0.33508134]
[1742036804153,0.61937088,598.42,596.87,0.33508134]
[1742036804452,0.33421342,598.42,596.87,0.33508134]
[1742036804749,0.61938178,598.41,596.87,0.33508134]
[1742036805054,0.61938736,598.4,596.87,0.33508134]
[1742036805253,0.28516277,598.39,596.87,0.33508134]
[1742036806350,0.28517213,598.38,596.87,0.33508134]
[1742036806552,0.28517213,598.37,596.87,0.33508134]
[1742036806748,0.28517213,598.39,596.87,0.33508134]
[1742036806954,0.33422459,598.4,596.87,0.33508134]
[1742036807249,0.28516546,598.39,596.87,0.33508134]
[1742036807453,0.28516546,598.39,596.88,0.791]
[1742036807653,0.28516546,598.39,596.9,0.33506449]
[1742036808856,0.28516546,598.39,596.9,1.12506449]
[1742036809254,0.28516546,598.39,596.9,1.94906449]
[1742036809660,0.28516546,598.39,596.9,3.04406449]
[1742036810261,0.28516423,598.38,596.9,3.04406449]
[1742036810461,0.28516423,598.37,596.9,3.04406449]
[1742036810662,0.28516423,598.39,596.9,3.04406449]
[1742036810862,0.28516423,598.38,596.9,3.04406449]
[1742036811062,0.28516423,598.39,596.9,3.04406449]
[1742036811263,0.28516423,598.38,596.9,3.04406449]
[1742036811463,0.28516423,598.39,596.9,3.04406449]
[1742036813564,0.28516423,598.38,596.91,0.30758308]
[1742036813766,0.33422459,598.4,596.92,0.33505327]
[1742036813962,0.2851622,598.39,596.92,0.33505327]
[1742036814365,0.2851622,598.38,596.92,0.33505327]
[1742036814661,0.2851622,598.37,596.92,0.33505327]
[1742036814967,0.2851622,598.36,596.92,0.33505327]
[1742036815168,0.2851622,598.35,596.92,0.33505327]
[1742036815365,0.2851622,598.34,596.93,0.30758602]
[1742036815566,0.33422459,598.4,596.93,0.30758602]
[1742036815567,0.2851622,598.33,596.93,0.30758602]
[1742036815763,0.2851622,598.32,596.93,0.30758602]
[1742036815965,0.2851622,598.39,596.94,0.33504204]
[1742036816274,0.33422459,598.4,596.94,0.33504204]
[1742036816275,0.2851622,598.38,596.94,0.33504204]
[1742036816465,0.2851622,598.37,596.94,0.33504204]
[1742036816665,0.2851622,598.36,596.94,0.33504204]
[1742036816869,0.2851622,598.35,596.94,0.33504204]
[1742036817170,0.2851622,598.34,596.94,0.33504204]
[1742036817365,0.2851622,598.39,596.95,1.012]
[1742036817567,0.2851622,598.38,596.95,1.012]
[1742036817767,0.28516432,598.37,596.95,1.012]
[1742036817968,0.28516432,598.36,596.95,1.012]
[1742036818170,0.28516432,598.39,596.96,0.33503082]
[1742036818363,0.28516432,598.38,596.96,0.33503082]
[1742036818563,0.28516432,598.37,596.96,0.33503082]
[1742036818768,0.28516432,598.36,596.96,0.33503082]
[1742036818969,0.28516432,598.39,596.96,0.33503082]
[1742036819168,0.28516432,598.38,596.96,0.33503082]
[1742036819574,0.28516432,598.37,596.96,0.33503082]
[1742036819774,0.28516432,598.36,596.96,0.33503082]
[1742036819973,0.28516432,598.35,596.96,0.33503082]
[1742036820172,0.28516432,598.39,596.96,0.33503082]
[1742036820373,0.28516432,598.38,596.96,0.33503082]
[1742036820673,0.28516432,598.37,596.96,0.33503082]
[1742036821071,0.28516487,598.36,596.96,0.33503082]
[1742036821270,0.28516487,598.39,596.97,1.126]
[1742036821469,0.28516487,598.38,596.98,0.33501959]
[1742036821669,0.28516487,598.39,596.98,0.33501959]
[1742036821874,0.28516487,598.38,596.98,0.33501959]
[1742036822073,0.28516487,598.37,596.98,0.33501959]
[1742036822273,0.28516487,598.36,596.98,0.33501959]
[1742036822474,0.33424694,598.36,596.98,0.33501959]
[1742036822672,0.28516487,598.35,596.98,0.33501959]
[1742036824476,0.33424694,598.36,596.98,0.33501959]
[1742036824874,0.28518859,598.35,596.98,0.33501959]
[1742036832379,0.28518859,598.35,596.99,1.093]
[1742036832583,0.28518859,598.35,597.0,0.33500837]
[1742036835582,0.33424694,598.36,597.0,0.33500837]
[1742036835788,0.28518632,598.35,597.0,0.33500837]
[1742036836087,0.28518632,598.35,597.01,0.962]
[1742036836283,0.28518632,598.35,597.02,0.33499715]
[1742036837190,0.28518632,598.35,597.02,1.18099715]
[1742036841796,0.28518632,598.34,597.02,1.18099715]
[1742036841990,0.28518632,598.33,597.02,1.18099715]
[1742036842195,0.33424694,598.36,597.02,1.92799715]
[1742036842196,0.28518632,598.32,597.02,1.92799715]
[1742036842396,0.28518632,598.35,597.02,1.92799715]
[1742036842597,0.28518632,598.34,597.02,1.92799715]
[1742036842899,0.28518632,598.33,597.02,1.92799715]
[1742036843099,0.28518673,598.32,597.02,1.92799715]
[1742036843299,0.28518673,598.31,597.02,1.92799715]
[1742036843494,0.28518673,598.3,597.02,1.92799715]
[1742036843697,0.28518673,598.29,597.02,2.88899715]
[1742036843992,0.28518673,598.28,597.02,2.88899715]
[1742036844195,0.28518673,598.35,597.02,2.88899715]
[1742036844400,0.28518673,598.34,597.02,2.88899715]
[1742036844700,0.28518673,598.33,597.02,2.88899715]
[1742036844900,0.28518673,598.35,597.02,2.88899715]
[1742036845199,0.28518935,598.34,597.02,2.88899715]
[1742036845394,0.28518935,598.35,597.02,2.88899715]
[1742036845595,0.28518935,598.33,597.02,2.88899715]
[1742036845797,0.28518935,598.32,597.02,2.88899715]
[1742036846099,0.28518935,598.31,597.02,2.88899715]
[1742036846494,0.28518935,598.3,597.02,2.88899715]
[1742036846694,0.28518935,598.35,597.02,2.88899715]
[1742036846894,0.28518935,598.34,597.02,2.88899715]
[1742036847100,0.28518935,598.35,597.02,2.88899715]
[1742036847294,0.28518935,598.34,597.02,2.88899715]
[1742036847500,0.28518935,598.35,597.02,2.88899715]
[1742036847795,0.28518935,598.34,597.02,2.88899715]
[1742036848003,0.28518935,598.35,597.02,2.88899715]
[1742036848300,0.28518935,598.34,597.02,2.88899715]
[1742036848500,0.28518935,598.35,597.02,2.88899715]
[1742036848702,0.33424694,598.36,597.02,2.88899715]
[1742036848901,0.33424694,598.36,597.02,3.78699715]
[1742036849302,0.2851839,598.35,597.02,3.78699715]
[1742036849903,0.2851839,598.35,597.02,4.67599715]
[1742036850801,0.28518593,598.34,597.02,4.67599715]
[1742036850998,0.28518593,598.35,597.02,4.67599715]
[1742036851203,0.28518593,598.34,597.02,4.67599715]
[1742036851401,0.28518593,598.35,597.02,4.67599715]
[1742036851702,0.28518593,598.34,597.02,4.67599715]
[1742036852005,0.28518593,598.33,597.02,4.67599715]
[1742036852301,0.28518593,598.32,597.02,4.67599715]
[1742036852502,0.28518593,598.35,597.02,4.67599715]
[1742036852705,0.33424694,598.36,597.02,4.67599715]
[1742036852903,0.28518375,598.35,597.02,4.67599715]
[1742036854005,0.33424694,598.36,597.02,4.67599715]
[1742036854207,0.28518401,598.35,597.02,5.58899715]
[1742036857406,0.33424694,598.36,597.02,5.58899715]
[1742036857407,0.28518401,598.34,597.02,6.47699715]
[1742036857597,0.28518401,598.35,597.02,6.47699715]
[1742036857899,0.28518401,598.34,597.02,6.47699715]
[1742036858105,0.28518401,598.33,597.02,6.47699715]
[1742036858304,0.28518507,598.32,597.02,6.47699715]
[1742036858508,0.28518507,598.31,597.02,6.47699715]
[1742036858707,2.45885714,598.33,597.02,6.47699715]
[1742036858903,0.28518392,598.32,597.02,6.47699715]
[1742036859100,2.17367207,598.33,597.02,6.47699715]
[1742036859101,2.55951673,598.29,597.02,6.47699715]
[1742036859305,0.28518392,598.28,597.02,6.47699715]
[1742036860103,6.92200118,598.28,597.02,6.47699715]
[1742036860306,2.45885575,598.27,597.02,6.47699715]
[1742036860506,0.28518368,598.26,597.02,6.47699715]
[1742036860706,2.45885575,598.26,597.02,6.47699715]
[1742036860902,0.28518368,598.25,597.02,6.47699715]
[1742036862206,4.74832887,598.25,597.02,6.47699715]
[1742036862404,0.28518368,598.24,597.02,6.47699715]
[1742036862601,0.28518368,598.25,597.02,6.47699715]
[1742036863206,4.75389862,598.25,597.02,6.47699715]
[1742036863403,0.28518368,598.24,597.02,6.47699715]
[1742036863607,0.28518368,598.27,597.02,6.47699715]
[1742036863802,2.55951673,598.28,597.02,6.47699715]
[1742036864005,0.28518367,598.27,597.02,6.47699715]
[1742036865207,2.8447004,598.27,597.02,6.47699715]
[1742036865407,0.28518367,598.26,597.02,6.47699715]
[1742036865704,0.28518354,598.25,597.02,6.47699715]
[1742036865903,0.28518354,598.24,597.02,6.47699715]
[1742036866104,0.28518354,598.26,597.02,6.47699715]
[1742036866307,0.28518354,598.23,597.02,6.47699715]
[1742036866505,0.28518354,598.22,597.02,6.47699715]
[1742036866705,0.28518354,598.26,597.02,6.47699715]
[1742036867011,0.28518354,598.25,597.02,6.47699715]
[1742036868406,2.55951673,598.24,597.02,6.47699715]
[1742036868608,0.28518354,598.23,597.02,6.47699715]
[1742036869707,0.2851863,598.22,597.02,6.47699715]
[1742036869911,6.93032249,598.23,597.02,6.47699715]
[1742036870106,0.2851863,598.22,597.02,6.47699715]
[1742036871407,2.55951673,598.23,597.02,6.47699715]
[1742036871813,0.28514084,598.22,597.02,6.47699715]
[1742036872407,0.28514084,598.35,597.02,6.47699715]
[1742036879027,0.33424694,598.36,597.02,6.47699715]
[1742036879227,0.28508211,598.35,597.02,6.47699715]
[1742036880025,0.28508211,598.35,597.03,0.30750296]
[1742036880225,0.28508211,598.35,597.05,0.33498031]
[1742036881231,0.28508211,598.35,597.05,1.03998031]
[1742036882730,0.28508211,598.35,597.05,2.97198031]
[1742036883134,0.28508211,598.35,597.05,4.07498031]
[1742036883336,0.28508211,598.35,597.05,4.83898031]
[1742036883637,0.28508211,598.35,597.05,6.19598031]
[1742036883840,0.28508211,598.35,597.05,6.98798031]
[1742036884137,0.28508211,598.35,597.05,7.89998031]
[1742036884836,0.2851782,598.34,597.05,7.89998031]
[1742036885031,0.3342637,598.33,597.05,7.89998031]
[1742036885239,0.2851782,598.32,597.05,7.89998031]
[1742036885433,0.33428046,598.3,597.05,7.565]
[1742036885634,0.2851782,598.29,597.05,7.565]
[1742036885838,0.33429722,598.27,597.05,7.565]
[1742036886133,0.2851782,598.26,597.05,7.565]
[1742036888037,0.5767075,598.25,597.05,7.565]
[1742036888237,0.28535636,598.24,597.05,7.565]
[1742036890938,0.29135114,598.23,597.05,7.565]
[1742036891237,0.28535636,598.22,597.05,7.565]
[1742036891431,0.33433634,598.2,597.05,7.565]
[1742036891633,0.28535636,598.19,597.05,7.565]
[1742036891835,0.33434752,598.18,597.05,7.565]
[1742036892136,0.28534778,598.17,597.05,7.565]
[1742036892338,0.3343587,598.16,597.05,7.565]
[1742036892538,0.28534778,598.15,597.05,7.565]
[1742036893441,0.33437547,598.13,597.05,7.565]
[1742036893633,0.28534778,598.12,597.05,7.565]
[1742036893938,0.61973443,598.11,597.05,7.565]
[1742036894138,0.28534778,598.1,597.05,7.565]
[1742036894436,0.28534778,598.09,597.05,7.565]
[1742036894637,0.28534778,598.1,597.05,7.565]
[1742036894837,0.28534778,598.09,597.05,7.565]
[1742036895038,0.6197512,598.08,597.05,7.565]
[1742036895239,0.61975679,598.07,597.05,7.565]
[1742036895534,0.3344146,598.06,597.05,7.565]
[1742036895740,0.28534294,598.05,597.05,7.565]
[1742036895937,0.33442579,598.04,597.05,7.565]
[1742036896143,0.28534294,598.03,597.05,7.565]
[1742036896337,0.33443697,598.02,597.05,7.565]
[1742036896543,0.28534294,598.01,597.05,7.565]
[1742036899445,0.33443697,598.02,597.05,7.565]
[1742036899747,0.28532053,598.01,597.05,7.565]
[1742036901951,0.33443697,598.02,597.05,7.565]
[1742036902145,0.28531827,598.01,597.05,7.565]
[1742036905153,0.28530364,598.0,597.05,7.565]
[1742036905353,0.28530364,598.01,597.05,7.565]
[1742036905552,0.28530364,598.0,597.05,7.565]
[1742036905853,0.28530364,597.99,597.05,7.565]
[1742036906055,0.28530364,598.01,597.05,7.565]
[1742036906252,0.28530364,598.0,597.05,7.565]
[1742036906453,0.28530364,598.01,597.05,7.565]
[1742036906654,0.28530364,598.0,597.05,7.565]
[1742036906853,0.28530364,598.01,597.05,7.565]
[1742036907055,0.33443697,598.02,597.05,7.565]
[1742036907255,0.28529857,598.01,597.05,7.565]
[1742036908857,0.2852972,598.0,597.05,7.565]
[1742036909257,0.2852972,597.99,597.05,7.565]
[1742036909452,0.2852972,598.01,597.05,7.565]
[1742036909752,0.2852972,598.0,597.05,7.565]
[1742036909953,0.2852972,597.99,597.05,7.565]
[1742036910260,0.2852972,597.98,597.05,7.565]
[1742036910454,0.2852972,598.01,597.05,7.565]
[1742036910654,0.2852972,598.0,597.05,7.565]
[1742036910854,0.2852972,598.01,597.05,7.565]
[1742036914158,0.28530075,598.0,597.05,7.565]
[1742036914458,0.28530075,597.99,597.05,7.565]
[1742036914661,0.28530075,598.01,597.05,7.565]
[1742036924158,0.33443697,598.02,597.05,7.565]
[1742036924361,0.28525068,598.01,597.05,7.565]
[1742036924564,0.28525068,598.01,596.63,0.29133773]
[1742036924759,0.28525068,598.01,596.65,0.33520489]
[1742036927270,0.28525068,598.01,596.65,2.50120489]
[1742036927571,0.28525068,598.01,596.65,4.41920489]
[1742036927770,0.33443697,598.02,596.65,4.41920489]
[1742036927965,0.28526231,598.01,596.65,5.28420489]
[1742036928368,0.28526231,598.01,596.65,8.65320489]
[1742036933575,0.33443697,598.02,596.65,8.65320489]
[1742036933775,0.28524367,598.01,596.65,8.65320489]
[1742036935482,0.28523711,598.0,596.65,8.65320489]
[1742036935673,0.28523711,598.01,596.65,8.65320489]
[1742036935979,0.28523711,598.0,596.65,8.65320489]
[1742036936179,0.28523711,598.01,596.65,8.65320489]
[1742036936380,0.28523711,598.0,596.65,8.65320489]
[1742036936679,0.28523711,597.99,596.65,8.65320489]
[1742036936974,0.28523711,597.98,596.65,8.65320489]
[1742036937178,0.28523711,598.01,596.65,8.65320489]
[1742036937379,0.28523711,598.0,596.65,8.65320489]
[1742036937578,0.28523711,598.01,596.65,8.65320489]
[1742036944681,0.28524668,598.0,596.65,8.65320489]
[1742036944886,0.28524668,598.01,596.65,8.65320489]
[1742036945086,0.28524668,598.0,596.65,8.65320489]
[1742036945287,0.28524668,598.01,596.65,8.65320489]
[1742036948689,0.2852429,598.0,596.65,8.65320489]
[1742036948889,0.2852429,598.01,596.65,8.65320489]
[1742036949089,0.2852429,598.0,596.65,8.65320489]
[1742036949289,0.2852429,598.01,596.65,8.65320489]
[1742036950291,0.33443697,598.02,596.65,8.65320489]
[1742036950484,0.28524159,598.01,596.65,8.65320489]
[1742036953787,0.28524159,598.01,596.66,0.30765617]
[1742036954091,0.28524159,598.01,596.68,0.33518804]
[1742036955288,0.28524159,598.01,596.69,0.30765641]
[1742036955490,0.28524159,598.01,596.71,0.33517118]
[1742036956791,0.28524159,598.01,596.72,2.177]
[1742036956991,0.28524159,598.01,596.73,0.33515995]
[1742036957895,0.33443697,598.02,596.73,0.33515995]
[1742036958196,0.28524538,598.01,596.73,0.33515995]
[1742036958397,0.28524538,598.01,596.74,1.127]
[1742036960795,0.28524538,598.01,596.75,1.47214872]
[1742036960997,0.28524538,598.01,596.76,0.3351431]
[1742036961902,0.33443697,598.02,596.76,0.3351431]
[1742036962102,0.28524982,598.01,596.76,0.3351431]
[1742036965200,0.28524982,598.01,596.77,1.092]
[1742036965398,0.28524982,598.01,596.78,0.33513187]
[1742036966095,0.28524982,598.01,596.78,1.52913187]
[1742036972408,0.28524982,598.01,596.78,2.84213187]
[1742036973003,0.28522721,598.0,596.78,2.84213187]
[1742036973209,0.28522721,598.01,596.78,2.84213187]
[1742036973411,0.28522721,598.0,596.78,2.84213187]
[1742036973607,0.28522721,598.01,596.78,2.84213187]
[1742036973811,0.28522721,598.0,596.78,2.84213187]
[1742036974111,0.28522721,597.99,596.78,2.84213187]
[1742036974312,0.28522721,598.01,596.78,2.84213187]
[1742036974512,0.33443697,598.02,596.78,2.84213187]
[1742036974712,0.28522295,598.01,596.78,2.84213187]
[1742036975912,0.28522295,598.01,596.78,4.26813187]
[1742036978713,0.28517358,598.0,596.79,0.307595]
[1742036979014,0.28517358,597.99,596.81,0.33511502]
[1742036979214,2.46060693,598.65,596.81,0.33511502]
[1742036979514,0.33409618,598.63,596.81,0.33511502]
[1742036979716,2.55951673,598.6,596.81,0.33511502]
[1742036980014,0.33412409,598.58,596.81,0.33511502]
[1742036980212,0.28517358,598.57,596.81,0.33511502]
[1742036980410,0.33414084,598.55,596.81,0.33511502]
[1742036980614,0.28518082,598.54,596.81,0.33511502]
[1742036980813,0.33415758,598.52,596.81,0.33511502]
[1742036981009,0.28518082,598.51,596.81,0.33511502]
[1742036981209,0.61934957,598.5,596.82,0.30759897]
[1742036981417,2.55951673,598.48,596.84,0.33509818]
[1742036981716,0.61936632,598.47,596.84,0.33509818]
[1742036981916,0.33419109,598.46,596.84,0.33509818]
[1742036982119,0.28517752,598.45,596.84,0.33509818]
[1742036982319,0.61937977,598.44,596.85,1.265]
[1742036982618,0.61938536,598.43,596.86,0.33508695]
[1742036982814,0.28517752,598.42,596.86,0.33508695]
[1742036983015,0.28517752,598.42,596.87,1.231]
[1742036984316,0.33420784,598.43,596.87,1.231]
[1742036984516,0.28516557,598.42,596.87,1.231]
[1742036986112,0.33420784,598.43,596.87,1.231]
[1742036986313,0.28517306,598.42,596.87,1.231]
[1742036987018,0.29127554,598.41,596.87,1.231]
[1742036987218,0.28517306,598.4,596.87,1.231]
[1742036987812,0.29127554,598.41,596.87,1.231]
[1742036988119,0.28518578,598.4,596.88,0.33507572]
[1742036988421,0.33423018,598.39,596.88,0.33507572]
[1742036988615,0.28518578,598.38,596.88,0.33507572]
[1742036988821,0.33424135,598.37,596.88,0.33507572]
[1742036989013,0.28518578,598.36,596.89,1.122]
[1742036989920,0.28518578,598.36,596.9,1.65206449]
[1742036990119,0.33425252,598.35,596.91,0.33505888]
[1742036990312,0.28518578,598.34,596.91,0.33505888]
[1742036990516,0.61944389,598.34,596.91,0.33505888]
[1742036990716,0.28518578,598.33,596.91,0.33505888]
[1742036991614,0.33426928,598.32,596.91,0.33505888]
[1742036991819,0.2852298,598.31,596.91,0.33505888]
[1742036992018,0.33428046,598.3,596.91,0.33505888]
[1742036992217,0.2852298,598.29,596.91,0.33505888]
[1742036992417,0.33429163,598.28,596.91,0.33505888]
[1742036992614,0.2852298,598.27,596.91,1.42105888]
[1742036992818,0.33430281,598.26,596.91,1.42105888]
[1742036993022,0.2852298,598.25,596.91,1.42105888]
[1742036994223,0.61953819,598.25,596.91,1.42105888]
[1742036994424,0.2852298,598.24,596.91,1.42105888]
[1742036995926,0.33430839,598.25,596.91,1.42105888]
[1742036996226,0.28523921,598.24,596.91,1.42105888]
[1742036997028,0.28523921,598.24,596.91,2.84705888]
[1742036999131,0.33430839,598.25,596.91,2.84705888]
[1742036999331,0.28523309,598.24,596.91,2.84705888]
[1742036999930,0.28523309,598.23,596.91,2.84705888]
[1742037000130,0.28523309,598.22,596.91,2.84705888]
[1742037000330,0.28523309,598.21,596.91,2.84705888]
[1742037000530,0.28523309,598.2,596.91,3.98805888]
[1742037000931,0.28523309,598.19,596.91,3.98805888]
[1742037001231,0.28523309,598.18,596.91,3.98805888]
[1742037001427,0.28523309,598.24,596.91,3.98805888]
[1742037001632,0.28523309,598.23,596.91,3.98805888]
[1742037001833,0.28523309,598.22,596.91,3.98805888]
[1742037002033,0.28523309,598.21,596.91,3.98805888]
[1742037002333,0.28523309,598.2,596.91,3.98805888]
[1742037002837,0.28523309,598.19,596.91,3.98805888]
[1742037003033,0.33430839,598.25,596.91,3.98805888]
[1742037003034,0.28523309,598.24,596.91,3.98805888]
[1742037003237,0.28523309,598.23,596.91,3.98805888]
[1742037003628,0.28523309,598.22,596.91,3.98805888]
[1742037003832,0.28523309,598.21,596.91,3.98805888]
[1742037004029,0.28523309,598.2,596.91,3.98805888]
[1742037004235,0.28523309,598.24,596.91,3.98805888]
[1742037004433,0.28523309,598.23,596.91,3.98805888]
[1742037004630,0.28523309,598.22,596.91,3.98805888]
[1742037004829,0.28523309,598.21,596.91,3.98805888]
[1742037005328,0.33430839,598.25,596.91,3.98805888]
[1742037006137,0.33430839,598.25,596.91,4.92505888]
[1742037007946,0.28523253,598.2,596.91,4.92505888]
[1742037008145,0.28523253,598.19,596.91,4.92505888]
[1742037008440,0.28523253,598.18,596.91,4.92505888]
[1742037008646,0.28523253,598.17,596.91,4.92505888]
[1742037008946,0.28523253,598.16,596.91,4.92505888]
[1742037009138,0.28523253,598.15,596.91,4.92505888]
[1742037009338,0.28523253,598.24,596.91,4.92505888]
[1742037009540,0.28523253,598.23,596.91,4.92505888]
[1742037009842,0.28523253,598.22,596.91,4.92505888]
[1742037010141,0.28523253,598.21,596.91,4.92505888]
[1742037010342,0.28523253,598.24,596.91,6.24605888]
[1742037010544,0.28523253,598.2,596.91,6.24605888]
[1742037010746,0.28523253,598.19,596.91,6.24605888]
[1742037010942,0.28523253,598.24,596.91,6.24605888]
[1742037011146,0.28523253,598.23,596.91,6.24605888]
[1742037011343,0.28523253,598.24,596.91,6.24605888]
[1742037011648,0.28523253,598.23,596.91,6.24605888]
[1742037011850,0.28523253,598.24,596.91,6.24605888]
[1742037012052,0.28523253,598.23,596.91,6.24605888]
[1742037012245,0.28523253,598.24,596.91,6.24605888]
[1742037012443,0.28523253,598.22,596.91,7.41105888]
[1742037012647,0.28523253,598.24,596.91,7.41105888]
[1742037012949,0.28523253,598.23,596.91,7.41105888]
[1742037013145,0.28523253,598.24,596.91,7.41105888]
[1742037014944,0.33431957,598.23,596.91,7.41105888]
[1742037015145,0.28523253,598.22,596.91,7.41105888]
[1742037015349,0.33433075,598.21,596.91,7.41105888]
[1742037015552,0.28523253,598.2,596.91,7.41105888]
[1742037015847,0.33434193,598.19,596.91,7.41105888]
[1742037016051,0.28523253,598.18,596.91,7.41105888]
[1742037016252,0.33435311,598.17,596.91,7.41105888]
[1742037016450,0.28523253,598.16,596.91,7.41105888]
[1742037016750,0.61959681,598.15,596.91,7.41105888]
[1742037016953,0.28523253,598.14,596.91,7.41105888]
[1742037017152,0.28523253,598.13,596.91,7.41105888]
[1742037017451,0.28523253,598.12,596.91,7.41105888]
[1742037017651,0.28523253,598.11,596.91,7.41105888]
[1742037017851,0.28523253,598.1,596.91,7.41105888]
[1742037018052,0.28523253,598.09,596.91,7.41105888]
[1742037018252,0.2852872,598.08,596.91,7.41105888]
[1742037018552,0.2852872,598.07,596.91,7.41105888]
[1742037018850,0.2852872,598.06,596.91,7.41105888]
[1742037019051,0.2852872,598.14,596.91,8.79405888]
[1742037019251,0.2852872,598.13,596.91,8.79405888]
[1742037019451,0.2852872,598.14,596.91,8.79405888]
[1742037021251,0.2852872,598.14,596.91,10.03905888]
[1742037021851,0.33436428,598.15,596.91,10.03905888]
[1742037022047,0.2852397,598.14,596.91,10.03905888]
[1742037023951,0.28521471,598.13,596.91,10.03905888]
[1742037024147,0.28521471,598.14,596.91,10.03905888]
[1742037024352,0.28521471,598.13,596.91,10.03905888]
[1742037024657,0.28521471,598.12,596.91,10.03905888]
[1742037024854,0.28521471,598.14,596.91,10.03905888]
[1742037025050,0.28521471,598.13,596.91,10.03905888]
[1742037025255,0.28521471,598.14,596.91,10.03905888]
[1742037033162,0.28520734,598.13,596.91,10.03905888]
[1742037033363,0.28520734,598.14,596.91,10.03905888]
[1742037033561,0.28520734,598.13,596.91,10.03905888]
[1742037033763,0.28520734,598.12,596.91,10.03905888]
[1742037033959,0.28520734,598.14,596.91,10.03905888]
[1742037034164,0.28520734,598.13,596.91,10.03905888]
[1742037034366,0.28520734,598.14,596.91,10.03905888]
[1742037034565,0.28520734,598.13,596.91,10.03905888]
[1742037034766,0.28520734,598.14,596.91,10.03905888]
[1742037034966,0.28520761,598.13,596.91,10.03905888]
[1742037035261,0.28520761,598.12,596.91,10.03905888]
[1742037035466,0.28520761,598.14,596.91,10.03905888]
[1742037035660,0.28520761,598.11,596.91,10.03905888]
[1742037035863,0.28520761,598.1,596.91,10.03905888]
[1742037036066,0.28520761,598.14,596.91,10.03905888]
[1742037036264,0.28520761,598.13,596.91,10.03905888]
[1742037036569,0.28520761,598.12,596.91,10.03905888]
[1742037036969,0.28520761,598.11,596.91,10.03905888]
[1742037037170,0.28520761,598.14,596.91,10.03905888]
[1742037037370,0.28520761,598.13,596.91,10.03905888]
[1742037037570,0.28520761,598.12,596.91,10.03905888]
[1742037037765,0.28520761,598.11,596.91,10.03905888]
[1742037037965,0.28520761,598.14,596.91,10.03905888]
[1742037038167,0.28520761,598.13,596.91,10.03905888]
[1742037038471,0.28520761,598.14,596.91,10.03905888]
[1742037038765,0.28520761,598.13,596.91,10.03905888]
[1742037038969,0.28520761,598.14,596.91,10.03905888]
[1742037039166,0.28520761,598.13,596.91,10.03905888]
[1742037039371,0.28520761,598.12,596.91,10.03905888]
[1742037039567,0.28520761,598.14,596.91,10.03905888]
[1742037039769,0.28520761,598.13,596.91,10.03905888]
[1742037039966,0.28520761,598.14,596.91,10.03905888]
[1742037040166,0.28520761,598.13,596.91,10.03905888]
[1742037040364,0.28520761,598.12,596.91,10.03905888]
[1742037040572,0.28520832,598.11,596.91,10.03905888]
[1742037040765,0.28520832,598.1,596.91,10.03905888]
[1742037040969,0.28520832,598.09,596.91,10.03905888]
[1742037041166,0.28520832,598.14,596.91,10.03905888]
[1742037041368,0.28520832,598.13,596.91,10.03905888]
[1742037041566,0.28520832,598.12,596.91,10.03905888]
[1742037041770,0.28520832,598.14,596.91,10.03905888]
[1742037041966,0.28520832,598.13,596.91,10.03905888]
[1742037042171,0.28520832,598.14,596.91,10.03905888]
[1742037042372,0.28520605,598.13,596.91,10.03905888]
[1742037042571,0.33436428,598.15,596.91,10.03905888]
[1742037042572,0.28520605,598.12,596.91,10.03905888]
[1742037042766,0.28520605,598.14,596.91,10.03905888]
[1742037049874,0.28522686,598.13,596.91,10.03905888]
[1742037050075,0.28522686,598.12,596.91,10.03905888]
[1742037050274,0.28522686,598.14,596.91,10.03905888]
[1742037050475,0.28522686,598.13,596.91,10.03905888]